[Event "Titled Tuesday Blitz February 14 Late 2023"]
[White "Samsonkin, Artiom"]
[Black "Sarana, Alexey"]
[WhiteFideId "13503111"]
[BlackFideId "24133795"]
[WhiteElo "2420"]
[BlackElo "2685"]
[Result "1-0"]
[Round "04"]
[TimeControl "180+2"]
[Date "2023.02.14"]
[WhiteClock "0:00:07"]
[BlackClock "0:00:01"]

1. e4 {[%clk 0:03:00]}  c5 {[%clk 0:02:57]} 2. Nf3 {[%clk 0:02:59]}  d6 {[%clk 0:02:58]} 3. Bb5+ {[%clk 0:02:58]}  Bd7 {[%clk 0:02:58]} 4. Bxd7+ {[%clk 0:02:57]}  Nxd7 {[%clk 0:02:59]} 5. O-O {[%clk 0:02:56]}  e6 {[%clk 0:02:58]} 6. c4 {[%clk 0:02:51]}  Ne5 {[%clk 0:02:58]} 7. Nc3 {[%clk 0:02:36]}  Ne7 {[%clk 0:02:58]} 8. d3 {[%clk 0:01:47]}  N7c6 {[%clk 0:02:54]} 9. Ne1 {[%clk 0:01:48]}  g5 {[%clk 0:02:53]} 10. Kh1 {[%clk 0:01:47]}  h5 {[%clk 0:02:50]} 11. f4 {[%clk 0:01:32]}  gxf4 {[%clk 0:02:50]} 12. Bxf4 {[%clk 0:01:33]}  Bg7 {[%clk 0:02:49]} 13. Nf3 {[%clk 0:01:31]}  Qe7 {[%clk 0:02:35]} 14. a3 {[%clk 0:01:27]}  Nxf3 {[%clk 0:02:23]} 15. Qxf3 {[%clk 0:01:26]}  Be5 {[%clk 0:02:23]} 16. Nd1 {[%clk 0:00:58]}  O-O-O {[%clk 0:02:21]} 17. Rb1 {[%clk 0:00:52]}  Rdg8 {[%clk 0:02:17]} 18. b4 {[%clk 0:00:52]}  Rg4 {[%clk 0:02:14]} 19. Bxe5 {[%clk 0:00:46]}  Nxe5 {[%clk 0:02:15]} 20. Qf2 {[%clk 0:00:38]}  Nxd3 {[%clk 0:01:57]} 21. Qxf7 {[%clk 0:00:37]}  Qxf7 {[%clk 0:01:57]} 22. Rxf7 {[%clk 0:00:38]}  Rxe4 {[%clk 0:01:58]} 23. Nc3 {[%clk 0:00:38]}  Rf4 {[%clk 0:01:11]} 24. Nb5 {[%clk 0:00:28]}  Rd8 {[%clk 0:00:41]} 25. Re7 {[%clk 0:00:28]}  a6 {[%clk 0:00:38]} 26. Na7+ {[%clk 0:00:23]}  Kb8 {[%clk 0:00:36]} 27. bxc5 {[%clk 0:00:24]}  Ka8 {[%clk 0:00:17]} 28. c6 {[%clk 0:00:19]}  Rb8 {[%clk 0:00:03]} 29. Rexb7 {[%clk 0:00:16]}  Rbf8 {[%clk 0:00:02]} 30. g3 {[%clk 0:00:13]}  Rf1+ {[%clk 0:00:01]} 31. Rxf1 {[%clk 0:00:14]}  Rxf1+ {[%clk 0:00:01]} 32. Kg2 {[%clk 0:00:15]}  Rf8 {[%clk 0:00:01]} 33. Rg7 {[%clk 0:00:07]} 1-0


[Site "https://www.chess.com"]

[Event "Titled Tuesday Blitz February 14 Late 2023"]
[White "Fedoseev, Vladimir"]
[Black "Li, Ruifeng"]
[WhiteFideId "24130737"]
[BlackFideId "2061074"]
[WhiteElo "2680"]
[BlackElo "2541"]
[Result "0-1"]
[Round "04"]
[TimeControl "180+2"]
[Date "2023.02.14"]
[WhiteClock "0:00:20"]
[BlackClock "0:00:30"]

1. e4 {[%clk 0:02:58]}  d6 {[%clk 0:03:00]} 2. d4 {[%clk 0:02:58]}  Nf6 {[%clk 0:03:01]} 3. Nc3 {[%clk 0:02:58]}  Nc6 {[%clk 0:03:01]} 4. Bg5 {[%clk 0:02:53]}  e5 {[%clk 0:02:51]} 5. dxe5 {[%clk 0:02:51]}  Nxe5 {[%clk 0:02:51]} 6. f4 {[%clk 0:02:47]}  Ng6 {[%clk 0:02:47]} 7. f5 {[%clk 0:02:44]}  Ne5 {[%clk 0:02:40]} 8. Nf3 {[%clk 0:02:42]}  h6 {[%clk 0:02:34]} 9. Bf4 {[%clk 0:02:39]}  Nfd7 {[%clk 0:02:27]} 10. Qd2 {[%clk 0:02:18]}  Be7 {[%clk 0:02:25]} 11. O-O-O {[%clk 0:02:17]}  c6 {[%clk 0:02:24]} 12. Kb1 {[%clk 0:02:14]}  Qa5 {[%clk 0:02:20]} 13. Nd4 {[%clk 0:02:09]}  b5 {[%clk 0:02:16]} 14. f6 {[%clk 0:01:26]}  b4 {[%clk 0:01:43]} 15. fxg7 {[%clk 0:01:06]}  Rg8 {[%clk 0:01:38]} 16. Nce2 {[%clk 0:01:06]}  Rxg7 {[%clk 0:01:33]} 17. Nf5 {[%clk 0:01:05]}  Rg6 {[%clk 0:01:33]} 18. Nxe7 {[%clk 0:01:00]}  Kxe7 {[%clk 0:01:34]} 19. Nd4 {[%clk 0:01:00]}  Nc5 {[%clk 0:01:26]} 20. Bxe5 {[%clk 0:00:58]}  dxe5 {[%clk 0:01:26]} 21. Nf5+ {[%clk 0:00:44]}  Bxf5 {[%clk 0:01:23]} 22. exf5 {[%clk 0:00:45]}  Rf6 {[%clk 0:01:21]} 23. Qe3 {[%clk 0:00:44]}  Na4 {[%clk 0:01:01]} 24. Bc4 {[%clk 0:00:42]}  Qc5 {[%clk 0:01:01]} 25. Qd3 {[%clk 0:00:36]}  Nb6 {[%clk 0:00:59]} 26. Ba6 {[%clk 0:00:20]}  Kf8 {[%clk 0:00:30]} 0-1


[Site "https://www.chess.com"]

[Event "Titled Tuesday Blitz February 14 Late 2023"]
[White "Yuan, Qingyu"]
[Black "Salem, A.R. Saleh"]
[WhiteFideId "8609772"]
[BlackFideId "9301348"]
[WhiteElo "2373"]
[BlackElo "2677"]
[Result "0-1"]
[Round "04"]
[TimeControl "180+2"]
[Date "2023.02.14"]
[WhiteClock "0:00:01"]
[BlackClock "0:00:11"]

1. e4 {[%clk 0:03:00]}  e5 {[%clk 0:02:53]} 2. Nf3 {[%clk 0:03:00]}  Nc6 {[%clk 0:02:47]} 3. Bb5 {[%clk 0:03:00]}  a6 {[%clk 0:02:47]} 4. Ba4 {[%clk 0:03:00]}  Nf6 {[%clk 0:02:48]} 5. d3 {[%clk 0:03:00]}  d6 {[%clk 0:02:43]} 6. c3 {[%clk 0:03:00]}  g6 {[%clk 0:02:42]} 7. O-O {[%clk 0:02:58]}  Bg7 {[%clk 0:02:42]} 8. Re1 {[%clk 0:02:58]}  O-O {[%clk 0:02:43]} 9. Nbd2 {[%clk 0:02:57]}  Bd7 {[%clk 0:02:41]} 10. Nf1 {[%clk 0:02:55]}  Qe8 {[%clk 0:02:41]} 11. Ng3 {[%clk 0:02:46]}  Kh8 {[%clk 0:02:33]} 12. h3 {[%clk 0:02:41]}  Ng8 {[%clk 0:02:32]} 13. Bb3 {[%clk 0:02:08]}  f5 {[%clk 0:02:27]} 14. exf5 {[%clk 0:02:08]}  gxf5 {[%clk 0:02:28]} 15. a3 {[%clk 0:01:54]}  f4 {[%clk 0:02:00]} 16. Ne4 {[%clk 0:01:49]}  Qg6 {[%clk 0:02:01]} 17. Kh2 {[%clk 0:01:40]}  Nf6 {[%clk 0:02:00]} 18. Nxf6 {[%clk 0:01:35]}  Bxf6 {[%clk 0:01:59]} 19. Bd5 {[%clk 0:01:32]}  Bf5 {[%clk 0:01:42]} 20. d4 {[%clk 0:00:55]}  e4 {[%clk 0:01:41]} 21. Nd2 {[%clk 0:00:54]}  Rg8 {[%clk 0:01:35]} 22. Rg1 {[%clk 0:00:54]}  Bh4 {[%clk 0:01:24]} 23. Qf1 {[%clk 0:00:36]}  Ne7 {[%clk 0:01:10]} 24. Bxg8 {[%clk 0:00:34]}  Rxg8 {[%clk 0:01:11]} 25. c4 {[%clk 0:00:23]}  c6 {[%clk 0:00:34]} 26. d5 {[%clk 0:00:20]}  cxd5 {[%clk 0:00:31]} 27. cxd5 {[%clk 0:00:21]}  Nxd5 {[%clk 0:00:31]} 28. b4 {[%clk 0:00:22]}  Bf6 {[%clk 0:00:31]} 29. Ra2 {[%clk 0:00:20]}  Nc3 {[%clk 0:00:29]} 30. Rc2 {[%clk 0:00:13]}  e3 {[%clk 0:00:29]} 31. Rxc3 {[%clk 0:00:13]}  exd2 {[%clk 0:00:26]} 32. Bxd2 {[%clk 0:00:12]}  Be5 {[%clk 0:00:26]} 33. Kh1 {[%clk 0:00:06]}  Be4 {[%clk 0:00:26]} 34. Rf3 {[%clk 0:00:06]}  Qh5 {[%clk 0:00:23]} 35. Qe2 {[%clk 0:00:05]}  Bxf3 {[%clk 0:00:22]} 36. Qxf3 {[%clk 0:00:05]}  Qxf3 {[%clk 0:00:22]} 37. gxf3 {[%clk 0:00:06]}  Rc8 {[%clk 0:00:16]} 38. Rc1 {[%clk 0:00:05]}  Rxc1+ {[%clk 0:00:16]} 39. Bxc1 {[%clk 0:00:06]}  Kg7 {[%clk 0:00:16]} 40. Kg2 {[%clk 0:00:04]}  Kf6 {[%clk 0:00:17]} 41. Kf1 {[%clk 0:00:04]}  b5 {[%clk 0:00:15]} 42. Ke2 {[%clk 0:00:03]}  Kg5 {[%clk 0:00:16]} 43. Kf1 {[%clk 0:00:04]}  h5 {[%clk 0:00:16]} 44. Kg2 {[%clk 0:00:04]}  Kf5 {[%clk 0:00:16]} 45. Kf1 {[%clk 0:00:04]}  Kf6 {[%clk 0:00:13]} 46. Ke2 {[%clk 0:00:04]}  Kg5 {[%clk 0:00:12]} 47. Kf1 {[%clk 0:00:04]}  d5 {[%clk 0:00:12]} 48. Kg2 {[%clk 0:00:03]}  Bd6 {[%clk 0:00:11]} 49. Kf1 {[%clk 0:00:03]}  Kf5 {[%clk 0:00:11]} 50. Bb2 {[%clk 0:00:02]}  Be5 {[%clk 0:00:11]} 51. Bc1 {[%clk 0:00:02]}  Bc3 {[%clk 0:00:11]} 52. Kg2 {[%clk 0:00:02]}  d4 {[%clk 0:00:11]} 53. Kf1 {[%clk 0:00:01]}  d3 {[%clk 0:00:11]} 0-1


[Site "https://www.chess.com"]

[Event "Titled Tuesday Blitz February 14 Late 2023"]
[White "Deac, Bogdan-Daniel"]
[Black "Lodici, Lorenzo"]
[WhiteFideId "1226380"]
[BlackFideId "884189"]
[WhiteElo "2700"]
[BlackElo "2524"]
[Result "1-0"]
[Round "04"]
[TimeControl "180+2"]
[Date "2023.02.14"]
[WhiteClock "0:00:03"]
[BlackClock "0:00:03"]

1. a3 {[%clk 0:03:00]}  g6 {[%clk 0:02:57]} 2. d4 {[%clk 0:02:55]}  Bg7 {[%clk 0:02:58]} 3. e4 {[%clk 0:02:55]}  c6 {[%clk 0:02:52]} 4. h3 {[%clk 0:02:52]}  d5 {[%clk 0:02:52]} 5. e5 {[%clk 0:02:52]}  c5 {[%clk 0:02:52]} 6. c3 {[%clk 0:02:48]}  Nc6 {[%clk 0:02:52]} 7. Nf3 {[%clk 0:02:43]}  c4 {[%clk 0:02:34]} 8. b3 {[%clk 0:02:27]}  cxb3 {[%clk 0:02:28]} 9. Qxb3 {[%clk 0:02:28]}  Na5 {[%clk 0:02:24]} 10. Bb5+ {[%clk 0:02:27]}  Kf8 {[%clk 0:02:19]} 11. Qd1 {[%clk 0:02:27]}  Bd7 {[%clk 0:02:10]} 12. a4 {[%clk 0:02:19]}  e6 {[%clk 0:01:15]} 13. Ba3+ {[%clk 0:02:02]}  Ne7 {[%clk 0:01:14]} 14. Nbd2 {[%clk 0:02:03]}  Kg8 {[%clk 0:01:11]} 15. O-O {[%clk 0:01:58]}  Bf8 {[%clk 0:01:09]} 16. Rb1 {[%clk 0:01:18]}  Rc8 {[%clk 0:01:09]} 17. Bb4 {[%clk 0:01:10]}  Nec6 {[%clk 0:01:05]} 18. Bxf8 {[%clk 0:00:57]}  Kxf8 {[%clk 0:01:04]} 19. Re1 {[%clk 0:00:51]}  Kg7 {[%clk 0:01:03]} 20. Nf1 {[%clk 0:00:51]}  Ne7 {[%clk 0:01:01]} 21. Ne3 {[%clk 0:00:32]}  h5 {[%clk 0:00:42]} 22. Ng5 {[%clk 0:00:23]}  h4 {[%clk 0:00:28]} 23. Ng4 {[%clk 0:00:21]}  Ng8 {[%clk 0:00:26]} 24. Bxd7 {[%clk 0:00:11]}  Qxd7 {[%clk 0:00:26]} 25. Qf3 {[%clk 0:00:11]}  Qe7 {[%clk 0:00:23]} 26. Qf4 {[%clk 0:00:10]}  Rxc3 {[%clk 0:00:20]} 27. Rec1 {[%clk 0:00:05]}  Rc4 {[%clk 0:00:20]} 28. Ne3 {[%clk 0:00:05]}  Rc6 {[%clk 0:00:18]} 29. Rxc6 {[%clk 0:00:04]}  Nxc6 {[%clk 0:00:19]} 30. a5 {[%clk 0:00:04]}  Nh6 {[%clk 0:00:19]} 31. a6 {[%clk 0:00:04]}  b6 {[%clk 0:00:19]} 32. Nf3 {[%clk 0:00:04]}  Nf5 {[%clk 0:00:18]} 33. Nxf5+ {[%clk 0:00:04]}  exf5 {[%clk 0:00:19]} 34. Rc1 {[%clk 0:00:04]}  Nb4 {[%clk 0:00:15]} 35. Rc3 {[%clk 0:00:03]}  Nxa6 {[%clk 0:00:15]} 36. Ng5 {[%clk 0:00:03]}  Nc7 {[%clk 0:00:13]} 37. e6 {[%clk 0:00:02]}  Nxe6 {[%clk 0:00:14]} 38. Qe5+ {[%clk 0:00:02]}  Kh6 {[%clk 0:00:05]} 39. Nxe6 {[%clk 0:00:03]}  f6 {[%clk 0:00:02]} 40. Qf4+ {[%clk 0:00:02]}  g5 {[%clk 0:00:03]} 41. Qxf5 {[%clk 0:00:03]}  Re8 {[%clk 0:00:04]} 42. Re3 {[%clk 0:00:03]}  Qf7 {[%clk 0:00:03]} 43. Nxg5 {[%clk 0:00:03]} 1-0


[Site "https://www.chess.com"]

[Event "Titled Tuesday Blitz February 14 Late 2023"]
[White "Bortnyk, Olexandr"]
[Black "Fernandez Guillen, Ernesto J."]
[WhiteFideId "14120828"]
[BlackFideId "3512428"]
[WhiteElo "2605"]
[BlackElo "2477"]
[Result "1-0"]
[Round "04"]
[TimeControl "180+2"]
[Date "2023.02.14"]
[WhiteClock "0:00:05"]
[BlackClock "0:00:03"]

1. d4 {[%clk 0:02:51]}  Nf6 {[%clk 0:02:59]} 2. Nc3 {[%clk 0:02:51]}  d5 {[%clk 0:02:59]} 3. Bf4 {[%clk 0:02:50]}  g6 {[%clk 0:02:51]} 4. e3 {[%clk 0:02:49]}  Bg7 {[%clk 0:02:48]} 5. h4 {[%clk 0:02:49]}  h6 {[%clk 0:02:42]} 6. Nf3 {[%clk 0:02:49]}  Bf5 {[%clk 0:02:35]} 7. Bd3 {[%clk 0:02:45]}  c6 {[%clk 0:02:32]} 8. Bxf5 {[%clk 0:02:44]}  gxf5 {[%clk 0:02:32]} 9. Ne5 {[%clk 0:02:43]}  Nbd7 {[%clk 0:02:30]} 10. Qf3 {[%clk 0:02:42]}  e6 {[%clk 0:02:27]} 11. O-O-O {[%clk 0:02:35]}  Ne4 {[%clk 0:02:00]} 12. Nxe4 {[%clk 0:02:33]}  fxe4 {[%clk 0:01:58]} 13. Qh5 {[%clk 0:02:32]}  Nxe5 {[%clk 0:01:53]} 14. Bxe5 {[%clk 0:02:33]}  Bxe5 {[%clk 0:01:52]} 15. Qxe5 {[%clk 0:02:27]}  Rg8 {[%clk 0:01:48]} 16. f3 {[%clk 0:02:27]}  Qb8 {[%clk 0:01:32]} 17. Qf6 {[%clk 0:02:19]}  Rg6 {[%clk 0:01:17]} 18. Qh8+ {[%clk 0:02:01]}  Ke7 {[%clk 0:01:17]} 19. Qxb8 {[%clk 0:01:59]}  Rxb8 {[%clk 0:01:18]} 20. fxe4 {[%clk 0:01:54]}  dxe4 {[%clk 0:01:19]} 21. Rd2 {[%clk 0:01:54]}  Rbg8 {[%clk 0:01:19]} 22. Rh2 {[%clk 0:01:54]}  h5 {[%clk 0:01:18]} 23. Rf2 {[%clk 0:01:51]}  Rg3 {[%clk 0:01:14]} 24. Kd2 {[%clk 0:01:51]}  R8g4 {[%clk 0:01:13]} 25. Re2 {[%clk 0:01:50]}  f5 {[%clk 0:01:08]} 26. c4 {[%clk 0:01:48]}  c5 {[%clk 0:01:04]} 27. dxc5 {[%clk 0:01:48]}  e5 {[%clk 0:01:04]} 28. b4 {[%clk 0:01:40]}  Rg8 {[%clk 0:00:55]} 29. Kc2 {[%clk 0:01:34]}  Rd8 {[%clk 0:00:52]} 30. Rh3 {[%clk 0:01:35]}  Rg4 {[%clk 0:00:41]} 31. Rh1 {[%clk 0:01:24]}  Ke6 {[%clk 0:00:36]} 32. a4 {[%clk 0:01:15]}  Rd3 {[%clk 0:00:34]} 33. a5 {[%clk 0:01:15]}  Rg3 {[%clk 0:00:18]} 34. Rd1 {[%clk 0:00:50]}  Rxd1 {[%clk 0:00:04]} 35. Kxd1 {[%clk 0:00:49]}  Rg4 {[%clk 0:00:04]} 36. Rd2 {[%clk 0:00:47]}  f4 {[%clk 0:00:05]} 37. exf4 {[%clk 0:00:42]}  exf4 {[%clk 0:00:05]} 38. Ke1 {[%clk 0:00:21]}  e3 {[%clk 0:00:06]} 39. Rd6+ {[%clk 0:00:20]}  Ke5 {[%clk 0:00:06]} 40. Kf1 {[%clk 0:00:14]}  Rxh4 {[%clk 0:00:06]} 41. a6 {[%clk 0:00:08]}  bxa6 {[%clk 0:00:06]} 42. Rd5+ {[%clk 0:00:09]}  Ke4 {[%clk 0:00:06]} 43. c6 {[%clk 0:00:10]}  Rh1+ {[%clk 0:00:05]} 44. Ke2 {[%clk 0:00:10]}  Rh2 {[%clk 0:00:03]} 45. c7 {[%clk 0:00:04]}  f3+ {[%clk 0:00:04]} 46. Kd1 {[%clk 0:00:05]}  Rh1+ {[%clk 0:00:04]} 47. Kc2 {[%clk 0:00:04]}  fxg2 {[%clk 0:00:03]} 48. c8=Q {[%clk 0:00:05]} 1-0


[Site "https://www.chess.com"]

[Event "Titled Tuesday Blitz February 14 Late 2023"]
[White "Livaic, Leon"]
[Black "Msellek, Ilyass"]
[WhiteFideId "14531534"]
[BlackFideId "675938"]
[WhiteElo "2579"]
[BlackElo "2420"]
[Result "1-0"]
[Round "04"]
[TimeControl "180+2"]
[Date "2023.02.14"]
[WhiteClock "0:00:05"]
[BlackClock "0:00:03"]

1. e4 {[%clk 0:03:00]}  c6 {[%clk 0:03:00]} 2. d4 {[%clk 0:02:57]}  d5 {[%clk 0:03:00]} 3. exd5 {[%clk 0:02:58]}  cxd5 {[%clk 0:03:01]} 4. Bd3 {[%clk 0:02:58]}  Nc6 {[%clk 0:03:01]} 5. c3 {[%clk 0:02:58]}  g6 {[%clk 0:02:59]} 6. h3 {[%clk 0:02:56]}  Bg7 {[%clk 0:02:59]} 7. Nf3 {[%clk 0:02:56]}  Nf6 {[%clk 0:02:57]} 8. Bf4 {[%clk 0:02:53]}  Bf5 {[%clk 0:02:56]} 9. Ne5 {[%clk 0:02:52]}  Bxd3 {[%clk 0:02:42]} 10. Nxd3 {[%clk 0:02:53]}  O-O {[%clk 0:02:42]} 11. Nd2 {[%clk 0:02:53]}  Nh5 {[%clk 0:02:32]} 12. Bh2 {[%clk 0:02:49]}  b6 {[%clk 0:02:22]} 13. O-O {[%clk 0:02:49]}  Qc8 {[%clk 0:02:13]} 14. Re1 {[%clk 0:02:47]}  Re8 {[%clk 0:02:12]} 15. Qf3 {[%clk 0:02:34]}  Nf6 {[%clk 0:02:12]} 16. Re2 {[%clk 0:02:27]}  Qf5 {[%clk 0:02:12]} 17. Qxf5 {[%clk 0:02:22]}  gxf5 {[%clk 0:02:13]} 18. f3 {[%clk 0:02:23]}  e6 {[%clk 0:02:12]} 19. g4 {[%clk 0:02:23]}  fxg4 {[%clk 0:02:12]} 20. fxg4 {[%clk 0:02:21]}  Red8 {[%clk 0:02:09]} 21. Rf1 {[%clk 0:02:20]}  Ne8 {[%clk 0:02:09]} 22. Nf3 {[%clk 0:02:15]}  Nd6 {[%clk 0:02:08]} 23. Nf4 {[%clk 0:02:02]}  Ne4 {[%clk 0:02:08]} 24. Nh5 {[%clk 0:02:03]}  Bh8 {[%clk 0:01:57]} 25. Nd2 {[%clk 0:02:03]}  Nxd2 {[%clk 0:01:54]} 26. Rxd2 {[%clk 0:02:03]}  b5 {[%clk 0:01:51]} 27. Rdf2 {[%clk 0:01:56]}  Rd7 {[%clk 0:01:51]} 28. Bf4 {[%clk 0:01:46]}  b4 {[%clk 0:01:51]} 29. Bg5 {[%clk 0:01:46]}  bxc3 {[%clk 0:01:48]} 30. bxc3 {[%clk 0:01:47]}  Rc8 {[%clk 0:01:48]} 31. Bf6 {[%clk 0:01:48]}  Nd8 {[%clk 0:01:36]} 32. Bxd8 {[%clk 0:00:57]}  Rcxd8 {[%clk 0:01:35]} 33. Rf3 {[%clk 0:00:52]}  Rc8 {[%clk 0:01:34]} 34. Kg2 {[%clk 0:00:50]}  Rb7 {[%clk 0:01:33]} 35. h4 {[%clk 0:00:46]}  a5 {[%clk 0:01:32]} 36. g5 {[%clk 0:00:46]}  a4 {[%clk 0:01:32]} 37. Kg3 {[%clk 0:00:46]}  a3 {[%clk 0:01:32]} 38. Kg4 {[%clk 0:00:46]}  Rcc7 {[%clk 0:01:21]} 39. Nf4 {[%clk 0:00:40]}  Rb2 {[%clk 0:01:14]} 40. h5 {[%clk 0:00:27]}  Rxa2 {[%clk 0:01:12]} 41. Nxe6 {[%clk 0:00:27]}  Re7 {[%clk 0:01:01]} 42. Nf4 {[%clk 0:00:17]}  Rd7 {[%clk 0:00:47]} 43. R3f2 {[%clk 0:00:18]}  Rxf2 {[%clk 0:00:29]} 44. Rxf2 {[%clk 0:00:19]}  Bg7 {[%clk 0:00:30]} 45. Ra2 {[%clk 0:00:15]}  Bf8 {[%clk 0:00:30]} 46. Kf5 {[%clk 0:00:13]}  Rb7 {[%clk 0:00:30]} 47. Nxd5 {[%clk 0:00:12]}  Rb2 {[%clk 0:00:30]} 48. Ra1 {[%clk 0:00:13]}  Rf2+ {[%clk 0:00:29]} 49. Ke4 {[%clk 0:00:13]}  Rg2 {[%clk 0:00:28]} 50. Nb4 {[%clk 0:00:09]}  Bxb4 {[%clk 0:00:26]} 51. cxb4 {[%clk 0:00:09]}  a2 {[%clk 0:00:15]} 52. Kd5 {[%clk 0:00:05]}  Rxg5+ {[%clk 0:00:15]} 53. Kc6 {[%clk 0:00:06]}  Rg4 {[%clk 0:00:11]} 54. Kc5 {[%clk 0:00:05]}  Rg2 {[%clk 0:00:09]} 55. b5 {[%clk 0:00:05]}  Rc2+ {[%clk 0:00:10]} 56. Kb4 {[%clk 0:00:06]}  f5 {[%clk 0:00:08]} 57. Kb3 {[%clk 0:00:06]}  Rd2 {[%clk 0:00:09]} 58. Rxa2 {[%clk 0:00:05]}  Rxd4 {[%clk 0:00:09]} 59. Kc3 {[%clk 0:00:04]}  Rd8 {[%clk 0:00:07]} 60. Kc4 {[%clk 0:00:04]}  Kf7 {[%clk 0:00:06]} 61. Ra7+ {[%clk 0:00:04]}  Kf6 {[%clk 0:00:07]} 62. Rxh7 {[%clk 0:00:05]}  f4 {[%clk 0:00:07]} 63. Ra7 {[%clk 0:00:04]}  f3 {[%clk 0:00:07]} 64. Ra3 {[%clk 0:00:04]}  Rc8+ {[%clk 0:00:04]} 65. Kb4 {[%clk 0:00:05]}  Ke5 {[%clk 0:00:03]} 66. Rxf3 {[%clk 0:00:05]}  Kd4 {[%clk 0:00:04]} 67. Rf4+ {[%clk 0:00:05]}  Kd3 {[%clk 0:00:05]} 68. Rf1 {[%clk 0:00:04]}  Rc4+ {[%clk 0:00:04]} 69. Ka5 {[%clk 0:00:05]}  Rc5 {[%clk 0:00:04]} 70. Ka6 {[%clk 0:00:05]}  Rxh5 {[%clk 0:00:04]} 71. b6 {[%clk 0:00:06]}  Kc4 {[%clk 0:00:03]} 72. b7 {[%clk 0:00:05]} 1-0


[Site "https://www.chess.com"]

[Event "Titled Tuesday Blitz February 14 Late 2023"]
[White "Mamedov, Rauf"]
[Black "Jaracz, Pawel"]
[WhiteFideId "13401653"]
[BlackFideId "1102222"]
[WhiteElo "2646"]
[BlackElo "2467"]
[Result "1-0"]
[Round "04"]
[TimeControl "180+2"]
[Date "2023.02.14"]
[WhiteClock "0:00:14"]
[BlackClock "0:00:05"]

1. e4 {[%clk 0:03:00]}  c6 {[%clk 0:02:59]} 2. Nf3 {[%clk 0:02:58]}  d5 {[%clk 0:02:59]} 3. Nc3 {[%clk 0:02:58]}  Bg4 {[%clk 0:02:52]} 4. h3 {[%clk 0:02:58]}  Bxf3 {[%clk 0:02:52]} 5. Qxf3 {[%clk 0:02:58]}  e6 {[%clk 0:02:50]} 6. d4 {[%clk 0:02:58]}  dxe4 {[%clk 0:02:46]} 7. Nxe4 {[%clk 0:02:58]}  Qxd4 {[%clk 0:02:45]} 8. Bg5 {[%clk 0:02:47]}  f5 {[%clk 0:02:31]} 9. Nc3 {[%clk 0:02:26]}  Be7 {[%clk 0:02:23]} 10. Rd1 {[%clk 0:01:59]}  Qb4 {[%clk 0:02:22]} 11. Bd2 {[%clk 0:02:00]}  Qc5 {[%clk 0:02:12]} 12. Qh5+ {[%clk 0:01:40]}  g6 {[%clk 0:02:11]} 13. Qe2 {[%clk 0:01:40]}  Kf7 {[%clk 0:02:08]} 14. g4 {[%clk 0:01:22]}  Nf6 {[%clk 0:02:06]} 15. Bg2 {[%clk 0:01:23]}  Nbd7 {[%clk 0:02:00]} 16. O-O {[%clk 0:01:22]}  Rhe8 {[%clk 0:01:46]} 17. Rfe1 {[%clk 0:01:21]}  Bf8 {[%clk 0:01:45]} 18. b4 {[%clk 0:01:17]}  Qb6 {[%clk 0:01:42]} 19. b5 {[%clk 0:01:02]}  Kg8 {[%clk 0:00:50]} 20. bxc6 {[%clk 0:00:58]}  bxc6 {[%clk 0:00:49]} 21. Be3 {[%clk 0:00:56]}  Qb4 {[%clk 0:00:41]} 22. Bd2 {[%clk 0:00:48]}  Qc5 {[%clk 0:00:38]} 23. Na4 {[%clk 0:00:43]}  Qxc2 {[%clk 0:00:36]} 24. Nc3 {[%clk 0:00:39]}  Nd5 {[%clk 0:00:33]} 25. Rc1 {[%clk 0:00:27]}  Nxc3 {[%clk 0:00:27]} 26. Qe3 {[%clk 0:00:27]}  Qxa2 {[%clk 0:00:19]} 27. Bxc3 {[%clk 0:00:27]}  Bg7 {[%clk 0:00:18]} 28. Bxg7 {[%clk 0:00:25]}  Kxg7 {[%clk 0:00:18]} 29. Qd4+ {[%clk 0:00:25]}  Nf6 {[%clk 0:00:12]} 30. g5 {[%clk 0:00:26]}  Rf8 {[%clk 0:00:13]} 31. Rxc6 {[%clk 0:00:23]}  Rae8 {[%clk 0:00:07]} 32. Rc7+ {[%clk 0:00:21]}  Kg8 {[%clk 0:00:07]} 33. gxf6 {[%clk 0:00:21]}  Qa5 {[%clk 0:00:07]} 34. Rec1 {[%clk 0:00:18]}  e5 {[%clk 0:00:05]} 35. Qd7 {[%clk 0:00:14]} 1-0


[Site "https://www.chess.com"]